bitfinex/quotes_BTCUSD_20220218
["timestamp","ask_amount","ask_price","bid_price","bid_amount"]
[1645210407380,0.0498,40201.0,40200.0,0.00751866]
[1645210409584,0.0498,40201.0,40195.0,0.010219]
[1645210409929,0.124503,40199.0,40195.0,0.010219]
[1645210410130,0.05,40199.0,40195.0,0.010219]
[1645210410331,0.1,40199.0,40195.0,0.010219]
[1645210410531,0.05,40199.0,40195.0,0.010219]
[1645210411031,0.112248,40199.0,40195.0,0.010219]
[1645210411731,0.112248,40199.0,40192.0,0.010219]
[1645210411932,0.40147021,40196.0,40192.0,0.010219]
[1645210412330,0.60147021,40196.0,40192.0,0.010219]
[1645210412730,0.45147021,40196.0,40192.0,0.010219]
[1645210412931,0.38921321,40196.0,40192.0,0.010219]
[1645210413777,0.112257,40196.0,40192.0,0.010219]
[1645210413978,0.05,40199.0,40195.0,0.09999999]
[1645210414180,0.13712595,40201.0,40198.0,0.09999999]
[1645210414378,0.0096,40202.0,40199.0,0.010219]
[1645210414577,0.98916009,40211.0,40199.0,0.010219]
[1645210414578,0.00059188,40204.0,40199.0,0.010219]
[1645210414779,0.31715739,40206.0,40201.0,0.11021899]
[1645210414979,0.31715739,40206.0,40203.0,0.010219]
[1645210415177,0.062231,40209.0,40203.0,0.010219]
[1645210415378,0.0143,40210.0,40203.0,0.010219]
[1645210415578,0.0143,40210.0,40205.0,0.010219]
[1645210416179,0.0143,40210.0,40203.0,0.010219]
[1645210416479,0.124468,40208.0,40203.0,0.010219]
[1645210416879,0.174468,40208.0,40201.0,0.010219]
[1645210417079,0.10399002,40206.0,40203.0,0.010219]
[1645210417279,0.05,40204.0,40203.0,0.010219]
[1645210417532,0.112238,40204.0,40203.0,0.010219]
[1645210417932,0.112238,40204.0,40201.0,0.010219]
[1645210418332,0.42823353,40204.0,40201.0,0.010219]
[1645210419533,0.00143363,40203.0,40201.0,0.010219]
[1645210421038,0.00143363,40203.0,40199.0,0.11021899]
[1645210421282,0.06367363,40203.0,40199.0,0.11021899]
[1645210421483,0.06367363,40203.0,40199.0,0.010219]
[1645210421484,0.12591463,40203.0,40199.0,0.010219]
[1645210421880,0.05,40202.0,40199.0,0.010219]
[1645210422080,0.062242,40201.0,40199.0,0.010219]
[1645210422281,0.062242,40201.0,40197.0,0.019719]
[1645210422481,0.05,40202.0,40200.0,0.09999999]
[1645210422783,0.06367363,40203.0,40199.0,0.09999999]
[1645210423085,0.00143363,40203.0,40199.0,0.010219]
[1645210423686,0.00143363,40203.0,40201.0,0.09999999]
[1645210423884,0.06367263,40203.0,40199.0,0.010219]
[1645210424283,0.062239,40203.0,40199.0,0.11021899]
[1645210424485,0.062239,40203.0,40202.0,0.00373828]
[1645210426136,0.36124323,40203.0,40202.0,0.00373828]
[1645210426534,0.29900423,40203.0,40202.0,0.00373828]
[1645210426735,0.05,40204.0,40202.0,0.25373828]
[1645210427836,0.34281866,40204.0,40202.0,0.25373828]
[1645210428038,0.34281866,40204.0,40202.0,0.25363565]
[1645210428886,0.05,40204.0,40202.0,0.25363565]
[1645210433534,0.05,40204.0,40202.0,0.26385465]
[1645210433734,0.05,40204.0,40203.0,0.0037318]
[1645210436488,0.124471,40205.0,40203.0,0.0139508]
[1645210436679,0.062235,40205.0,40203.0,0.0139508]
[1645210438079,0.124471,40205.0,40203.0,0.0037318]
[1645210438279,0.124281,40205.0,40203.0,0.0037318]
[1645210438880,0.00078362,40204.0,40202.0,0.25]
[1645210439086,0.09677578,40203.0,40202.0,0.25]
[1645210439280,0.14677578,40203.0,40202.0,0.25]
[1645210443883,0.14813123,40203.0,40202.0,0.25]
[1645210444785,0.00135545,40203.0,40202.0,0.25]
[1645210444987,0.00135545,40203.0,40202.0,0.260219]
[1645210445186,0.00135545,40203.0,40202.0,0.591814]
[1645210445388,0.005,40210.0,40202.0,1.175319]
[1645210445592,0.0002767,40211.0,40210.0,0.53551938]
[1645210445787,0.0002767,40211.0,40210.0,0.74573838]
[1645210445988,0.0002767,40211.0,40210.0,1.56063838]
[1645210446190,0.0002767,40211.0,40210.0,0.79553838]
[1645210446386,0.0002767,40211.0,40210.0,0.36394338]
[1645210446991,0.0002767,40211.0,40210.0,0.59553838]
[1645210447187,0.0002767,40211.0,40210.0,1.12904338]
[1645210447431,0.0002767,40211.0,40210.0,1.22904338]
[1645210448231,0.0002767,40211.0,40210.0,0.46394338]
[1645210449033,0.0002767,40211.0,40210.0,0.0498]
[1645210450735,0.0002767,40211.0,40209.0,0.09999999]
[1645210450935,0.0002767,40211.0,40206.0,0.09999999]
[1645210451198,0.26436719,40208.0,40206.0,0.11021899]
[1645210451387,0.26436719,40208.0,40206.0,0.010219]
[1645210452591,0.26436719,40208.0,40205.0,0.010219]
[1645210453389,0.25436719,40208.0,40205.0,0.010219]
[1645210454391,0.25196719,40208.0,40205.0,0.010219]
[1645210454591,0.25196719,40208.0,40205.0,0.00945829]
[1645210454796,0.25196719,40208.0,40205.0,0.00789321]
[1645210455431,0.11999515,40210.0,40206.0,0.010219]
[1645210456232,0.09499515,40210.0,40206.0,0.010219]
[1645210456433,0.27250152,40209.0,40206.0,0.010219]
[1645210456634,0.27250152,40209.0,40205.0,0.00789321]
[1645210457633,0.27250152,40209.0,40206.0,0.010219]
[1645210457840,0.0002767,40211.0,40207.0,0.010219]
[1645210458038,0.0002767,40211.0,40207.0,0.020438]
[1645210458433,0.0002767,40211.0,40210.0,0.09999999]
[1645210463429,0.0002767,40211.0,40210.0,0.10995139]
[1645210464630,0.0002767,40211.0,40210.0,0.12017039]
[1645210466389,6.7e-06,40211.0,40210.0,0.50176539]
[1645210466588,6.7e-06,40211.0,40210.0,0.17017039]
[1645210466788,6.7e-06,40211.0,40210.0,0.27017039]
[1645210466988,0.007326,40218.0,40211.0,5.33e-05]
[1645210467188,0.007326,40218.0,40217.0,0.09999999]
[1645210467489,0.30618928,40221.0,40217.0,0.11021899]
[1645210467890,0.30618928,40221.0,40217.0,0.12043799]
[1645210469292,0.007326,40224.0,40218.0,0.010219]
[1645210469494,0.007326,40224.0,40219.0,0.010219]
[1645210469694,0.007326,40224.0,40219.0,0.020438]
[1645210470336,0.30815825,40222.0,40219.0,0.020438]
[1645210470531,0.30815825,40222.0,40219.0,0.010219]
[1645210470729,0.007326,40224.0,40219.0,0.010219]
[1645210470929,0.007326,40224.0,40220.0,0.010219]
[1645210471130,0.007326,40224.0,40220.0,0.020438]
[1645210471729,0.27349518,40223.0,40220.0,0.020438]
[1645210472830,0.27349518,40223.0,40220.0,0.010219]
[1645210473034,0.27349518,40223.0,40219.0,0.260219]
[1645210473234,0.05,40222.0,40219.0,0.25]
[1645210473691,0.3061503,40221.0,40219.0,0.25]
[1645210473886,0.26375563,40220.0,40219.0,0.25]
[1645210474086,0.56990593,40220.0,40219.0,0.25]
[1645210474286,0.76990593,40220.0,40219.0,0.25]
[1645210474888,0.81970593,40220.0,40219.0,0.25]
[1645210475286,0.062233,40218.0,40215.0,0.010219]
[1645210475487,0.3,40217.0,40214.0,0.010219]
[1645210475689,0.3,40217.0,40212.0,0.010219]
[1645210475886,0.35,40217.0,40211.0,0.0102723]
[1645210476287,0.39001724,40216.0,40211.0,0.0102723]
[1645210476786,0.2497443,40213.0,40211.0,5.33e-05]
[1645210476986,0.2997443,40213.0,40211.0,5.33e-05]
[1645210478639,0.3,40212.0,40211.0,5.33e-05]
[1645210478840,0.8215803,40213.0,40211.0,5.33e-05]
[1645210479239,0.93596901,40213.0,40211.0,5.33e-05]
[1645210479441,0.8215803,40213.0,40211.0,5.33e-05]
[1645210480642,0.5215803,40213.0,40211.0,5.33e-05]
[1645210481044,0.271837,40213.0,40211.0,0.0102723]
[1645210481293,0.1096,40213.0,40211.0,0.0204913]
[1645210481491,0.062225,40216.0,40212.0,0.12043799]
[1645210481693,0.11439601,40219.0,40215.0,0.11021899]
[1645210481889,0.5015054,40220.0,40218.0,0.010219]
[1645210482090,0.5015054,40220.0,40219.0,0.010219]
[1645210482289,0.78819801,40220.0,40218.0,0.020438]
[1645210482690,0.0015054,40220.0,40218.0,0.020438]
[1645210483289,0.0015054,40220.0,40219.0,0.010219]
[1645210483494,0.1520744,40228.0,40219.0,0.020438]
[1645210483688,0.0276524,40228.0,40219.0,0.23746738]
[1645210483891,0.30187225,40226.0,40219.0,0.23746738]
[1645210484590,0.36408125,40226.0,40219.0,0.020438]
[1645210485033,0.11083157,40222.0,40218.0,0.260219]
[1645210485533,0.11083157,40222.0,40218.0,0.25]
[1645210486233,0.16083157,40222.0,40218.0,0.25]
[1645210487333,0.05,40222.0,40218.0,0.25]
[1645210487736,0.36408225,40226.0,40218.0,0.25]
[1645210487737,0.47629225,40226.0,40218.0,0.25]
[1645210487939,0.57629225,40226.0,40219.0,0.010219]
[1645210488537,0.1227293,40224.0,40219.0,0.010219]
[1645210488785,0.062212,40223.0,40219.0,0.010219]
[1645210489185,0.062212,40223.0,40221.0,0.0068237]
[1645210489585,0.057212,40223.0,40221.0,0.0068237]
[1645210490587,0.112208,40226.0,40221.0,0.10682369]
[1645210490793,0.124422,40228.0,40225.0,0.09999999]
[1645210490794,0.11436849,40228.0,40225.0,0.09999999]
[1645210490986,0.0021,40233.0,40225.0,0.11021899]
[1645210491190,0.0021,40233.0,40228.0,0.010219]
[1645210491384,0.0021,40233.0,40231.0,0.09999999]
[1645210491584,0.0021,40233.0,40231.0,0.11021899]
[1645210492435,0.0021,40233.0,40232.0,0.3]
[1645210492637,0.0021,40233.0,40231.0,0.11021899]
[1645210493236,0.0021,40233.0,40231.0,0.09999999]
[1645210494637,0.0021,40233.0,40231.0,0.34999999]
[1645210495839,0.0021,40233.0,40231.0,0.25]
[1645210496037,0.064296,40233.0,40231.0,0.25]
[1645210497389,0.0021,40233.0,40231.0,0.25]
[1645210497589,0.0021,40233.0,40231.0,0.34999999]
[1645210498788,0.33707823,40232.0,40231.0,0.34999999]
[1645210499690,0.00071909,40232.0,40231.0,0.34999999]
[1645210501143,0.00071909,40232.0,40231.0,0.25]
[1645210501646,0.05051909,40232.0,40231.0,0.25]
[1645210501843,0.05666939,40232.0,40231.0,0.25]
[1645210502040,0.10666939,40232.0,40231.0,0.25]
[1645210502241,0.29853438,40232.0,40231.0,0.25]
[1645210503242,0.29853438,40232.0,40231.0,0.21813962]
[1645210503442,0.2994779,40232.0,40231.0,0.21813962]
[1645210503704,1.05,40230.0,40225.0,0.010219]
[1645210503893,1.05,40230.0,40208.0,0.1193]
[1645210503894,0.062219,40227.0,40208.0,0.1193]
[1645210504090,0.008584,40222.0,40212.0,0.010219]
[1645210504295,0.0695277,40221.0,40208.0,0.01]
[1645210504489,0.0695277,40221.0,40211.0,0.08027229]
[1645210504490,0.010219,40219.0,40211.0,0.08027229]
[1645210504691,0.010219,40219.0,40208.0,0.01]
[1645210504692,0.34157423,40213.0,40210.0,0.25602224]
[1645210504894,0.10702293,40214.0,40210.0,0.25602224]
[1645210504895,0.0498,40214.0,40210.0,0.25602224]
[1645210505092,0.05,40213.0,40210.0,0.25602224]
[1645210505297,0.0998,40213.0,40212.0,0.08027229]
[1645210505492,0.0498,40213.0,40212.0,0.08027229]
[1645210505894,0.0498,40213.0,40212.0,0.42903228]
[1645210506294,0.060019,40219.0,40212.0,0.08027229]
[1645210506494,0.060019,40219.0,40213.0,0.3]
[1645210506693,0.060019,40219.0,40217.0,0.08027229]
[1645210506897,0.0498,40219.0,40217.0,0.08027229]
[1645210507294,0.0498,40219.0,40211.0,0.30367186]
[1645210507541,0.0197277,40218.0,40203.0,0.3]
[1645210507741,0.0197277,40213.0,40212.0,0.25]
[1645210507940,0.0299467,40213.0,40212.0,0.25]
[1645210508137,2.4255486,40213.0,40199.0,0.1984]
[1645210508338,0.06224991,40206.0,40199.0,0.1984]
[1645210508539,0.06225,40203.0,40196.0,0.18788808]
[1645210508940,0.06225,40203.0,40196.0,0.18288808]
[1645210509240,0.010219,40204.0,40196.0,0.18288808]
[1645210509443,0.010219,40204.0,40198.0,0.08027229]
[1645210509641,0.124498,40203.0,40196.0,0.26316037]
[1645210509841,0.010219,40204.0,40199.0,0.08027229]
[1645210510243,0.010219,40208.0,40200.0,0.08027229]
[1645210511040,0.30708803,40203.0,40200.0,0.08027229]
[1645210511289,0.36932903,40203.0,40196.0,0.18288808]
[1645210511489,0.48157003,40203.0,40196.0,0.26316037]
[1645210511887,0.48157003,40203.0,40196.0,0.18288808]
[1645210511888,0.05,40203.0,40196.0,0.18288808]
[1645210512092,0.03851769,40203.0,40200.0,0.08027229]
[1645210512286,0.062239,40204.0,40200.0,0.08027229]
[1645210512686,0.010219,40205.0,40200.0,0.08027229]
[1645210512888,0.28538778,40203.0,40200.0,0.08027229]
[1645210513089,0.28538778,40203.0,40196.0,0.18288808]
[1645210513291,0.34762778,40203.0,40198.0,0.08027229]
[1645210513889,0.34762778,40203.0,40200.0,0.0032495]
[1645210514091,0.11224,40203.0,40200.0,0.0032495]
[1645210514492,0.06224,40203.0,40200.0,0.0032495]
[1645210514695,0.05,40202.0,40200.0,0.0032495]
[1645210514936,0.06224,40203.0,40200.0,0.0032495]
[1645210516236,0.2533027,40202.0,40200.0,0.0032495]
[1645210516435,0.3155477,40202.0,40200.0,0.0032495]
[1645210516636,0.112245,40202.0,40200.0,0.0032495]
[1645210516839,0.05,40202.0,40200.0,0.0032495]
[1645210517139,0.010219,40208.0,40201.0,0.08027229]
[1645210517341,0.010219,40208.0,40202.0,0.0096]
[1645210517737,0.010219,40208.0,40202.0,0.20103943]
[1645210518137,0.010219,40208.0,40204.0,0.08027229]
[1645210518336,0.0001246,40209.0,40204.0,0.08027229]
[1645210518994,0.0001246,40209.0,40204.0,0.33027229]
[1645210519395,0.0001246,40209.0,40207.0,0.08027229]
[1645210521396,0.0001246,40209.0,40204.0,0.25]
[1645210521896,0.25320179,40205.0,40204.0,0.25]
[1645210522096,0.0001246,40209.0,40204.0,0.25]
[1645210522300,1.35211561,40230.0,40205.0,0.381395]
[1645210522301,0.0001246,40207.0,40205.0,0.381395]
[1645210522554,0.0001246,40207.0,40206.0,0.71186729]
[1645210522746,0.0001246,40207.0,40206.0,0.76166729]
[1645210522947,0.0001246,40207.0,40206.0,0.86166729]
[1645210523149,0.010219,40216.0,40214.0,0.25483674]
[1645210523347,0.0002492,40217.0,40215.0,0.381395]
[1645210523947,0.0002492,40217.0,40215.0,0.0498]
[1645210524350,0.2583685,40217.0,40215.0,0.0498]
[1645210524549,0.0104682,40217.0,40215.0,0.0498]
[1645210524847,0.31555552,40216.0,40215.0,0.0498]
[1645210525053,0.36555552,40216.0,40215.0,0.0498]
[1645210525449,0.46685208,40216.0,40215.0,0.0498]
[1645210526388,0.36555552,40216.0,40215.0,0.0498]
[1645210527490,0.4741246,40216.0,40212.0,0.08654456]
[1645210527694,0.4843436,40216.0,40212.0,0.08654456]
[1645210527890,0.5465646,40216.0,40212.0,0.00627227]
[1645210529491,0.29323008,40216.0,40212.0,0.00627227]
[1645210530141,0.060219,40216.0,40212.0,0.00627227]
[1645210530343,0.060219,40216.0,40212.0,0.25627227]
[1645210531342,0.1703482,40216.0,40212.0,0.25627227]
[1645210531741,0.060219,40216.0,40212.0,0.25627227]
[1645210531946,0.05,40216.0,40215.0,0.08027229]
[1645210532144,0.0104682,40217.0,40215.0,0.08027229]
[1645210532145,0.0002492,40217.0,40215.0,0.08027229]
[1645210533146,0.0002492,40217.0,40212.0,0.25627227]
[1645210533988,0.0002492,40217.0,40214.0,0.08027229]
[1645210534191,0.0002492,40217.0,40216.0,0.08027229]
[1645210534388,0.0002492,40217.0,40214.0,0.00652934]
[1645210534688,0.0002492,40217.0,40216.0,0.08027229]
[1645210535491,0.0002492,40217.0,40215.0,0.08027229]
[1645210535687,0.0002492,40217.0,40214.0,0.00652934]
[1645210535891,0.010219,40216.0,40214.0,0.00652934]
[1645210536289,0.010219,40215.0,40214.0,0.00652934]
[1645210539137,0.010219,40215.0,40214.0,0.00324821]
[1645210539539,0.16694347,40216.0,40214.0,0.00324821]
[1645210539738,0.0002492,40216.0,40214.0,0.00324821]
[1645210539939,0.0002492,40216.0,40215.0,0.08027229]
[1645210540137,0.0002492,40216.0,40213.0,0.00147171]
[1645210540138,0.29297695,40214.0,40213.0,0.00147171]
[1645210540337,0.0104682,40216.0,40213.0,0.00147171]
[1645210540539,0.010219,40215.0,40213.0,0.00147171]
[1645210541293,0.45509759,40215.0,40213.0,0.00147171]
[1645210541892,0.010219,40214.0,40213.0,0.00147171]
[1645210543093,0.0797467,40214.0,40213.0,0.00147171]
[1645210543298,0.060019,40214.0,40213.0,0.00147171]
[1645210543494,0.0797467,40214.0,40213.0,0.00147171]
[1645210543893,0.33479559,40214.0,40213.0,0.00147171]
[1645210544093,0.0797467,40214.0,40213.0,0.0030576]
[1645210544293,0.160019,40214.0,40213.0,0.0030576]
[1645210545347,0.060019,40214.0,40213.0,0.0030576]
[1645210546449,0.0498,40214.0,40213.0,0.0030576]
[1645210547049,0.060019,40214.0,40213.0,0.0030576]
[1645210548455,0.26101272,40215.0,40213.0,0.0030576]
[1645210549290,0.26101272,40215.0,40213.0,0.00923616]
[1645210549589,0.27123172,40215.0,40213.0,0.00923616]
[1645210549794,0.010219,40215.0,40213.0,0.00313276]
[1645210549991,0.010219,40216.0,40214.0,0.08027229]
[1645210550193,0.05,40216.0,40214.0,0.08027229]
[1645210550594,0.0502492,40216.0,40214.0,0.08027229]
[1645210551099,0.0502492,40216.0,40214.0,0.49260952]
[1645210551100,0.0002492,40216.0,40214.0,0.49260952]
[1645210551299,0.0002492,40216.0,40215.0,0.331595]
[1645210551498,0.0002492,40216.0,40215.0,0.381395]
[1645210553140,0.0002492,40216.0,40215.0,1.146495]
[1645210553538,0.0002492,40216.0,40215.0,0.8149]
[1645210553743,0.0002492,40216.0,40215.0,0.9649]
[1645210553940,0.0002492,40216.0,40215.0,1.246495]
[1645210554138,0.0002492,40216.0,40215.0,1.146495]
[1645210554338,0.0002492,40216.0,40215.0,1.31392839]
[1645210554740,0.0002492,40216.0,40215.0,0.98233339]
[1645210554939,0.0002492,40216.0,40215.0,1.32258988]
[1645210555140,0.0002492,40216.0,40215.0,0.98233339]
[1645210555840,0.0002492,40216.0,40215.0,1.31392839]
[1645210556298,0.009197,40227.0,40218.0,0.2]
[1645210556494,0.009197,40227.0,40219.0,0.390895]
[1645210556696,0.009197,40227.0,40219.0,0.0593]
[1645210556894,0.009197,40227.0,40223.0,0.08027229]
[1645210557293,0.009197,40227.0,40223.0,0.42516469]
[1645210557494,0.009197,40227.0,40223.0,0.08027229]
[1645210558995,0.062205,40226.0,40223.0,0.08027229]
[1645210559494,0.062205,40226.0,40219.0,0.0593]
[1645210559695,0.34484052,40222.0,40219.0,0.0593]
[1645210560144,0.34484052,40222.0,40219.0,0.0095]
[1645210560445,0.12897779,40221.0,40215.0,0.00548314]
[1645210561448,0.12443836,40220.0,40215.0,0.00548314]
[1645210561745,0.17443836,40220.0,40215.0,0.00548314]
[1645210562948,0.3,40219.0,40215.0,0.00548314]
[1645210563146,0.42445491,40219.0,40215.0,0.00548314]
[1645210563346,0.05,40218.0,40215.0,0.00548314]
[1645210563706,0.062236,40217.0,40215.0,0.00548314]
[1645210563902,0.5593648,40216.0,40215.0,0.00548314]
[1645210564300,0.5593648,40216.0,40212.0,0.00627227]
[1645210564301,0.6593648,40216.0,40212.0,0.00627227]
[1645210564601,0.35340697,40214.0,40212.0,0.00627227]
[1645210564800,0.1,40214.0,40212.0,0.00627227]
[1645210565002,0.06273266,40216.0,40215.0,0.02369011]
[1645210565204,0.09788318,40216.0,40215.0,0.02369011]
[1645210565401,0.0004984,40216.0,40215.0,0.02369011]
[1645210565802,0.2541671,40216.0,40215.0,0.02369011]
[1645210566802,0.3041671,40216.0,40215.0,0.02369011]
[1645210567203,0.4041671,40216.0,40215.0,0.02369011]
[1645210567439,0.0004984,40216.0,40215.0,0.02369011]
[1645210569645,0.21358478,40216.0,40215.0,0.02369011]
[1645210570047,0.3004984,40216.0,40215.0,0.02369011]
[1645210570447,0.4004984,40216.0,40215.0,0.02369011]
[1645210571046,0.1004984,40216.0,40215.0,0.02369011]
[1645210571293,0.0004984,40216.0,40215.0,0.02369011]
[1645210573493,0.0627224,40216.0,40215.0,0.02369011]
[1645210573996,0.0627224,40216.0,40215.0,0.0262042]
[1645210574194,0.0627224,40216.0,40215.0,0.02879169]
[1645210578152,0.3627224,40216.0,40215.0,0.02879169]
[1645210578354,0.4627224,40216.0,40215.0,0.02879169]
[1645210578552,0.1627224,40216.0,40215.0,0.02879169]
[1645210578995,0.0627224,40216.0,40215.0,0.02879169]
[1645210579197,0.0004984,40216.0,40215.0,0.02879169]
[1645210580903,0.0504984,40216.0,40215.0,0.02879169]
[1645210583743,0.062235,40214.0,40212.0,0.00627227]
[1645210583942,0.062235,40214.0,40207.0,0.01046819]
[1645210583943,0.75,40212.0,40207.0,0.01046819]
[1645210584143,0.4441997,40213.0,40207.0,0.00024919]
[1645210584144,0.062243,40210.0,40207.0,0.00024919]
[1645210584342,0.112043,40210.0,40207.0,0.00024919]
[1645210584747,0.575099,40208.0,40207.0,0.00024919]
[1645210584943,0.38039644,40208.0,40207.0,0.00024919]
[1645210585243,0.60488344,40208.0,40207.0,0.00024919]
[1645210585644,0.90488344,40208.0,40207.0,0.00024919]
[1645210586042,1.00225712,40208.0,40207.0,0.00024919]
[1645210586296,0.60488344,40208.0,40207.0,0.00024919]
[1645210586497,0.70225712,40208.0,40207.0,0.00024919]
[1645210586794,0.60488344,40208.0,40207.0,0.00024919]
[1645210587196,0.92135058,40208.0,40207.0,0.00024919]
[1645210587400,0.93131158,40208.0,40207.0,0.00024919]
[1645210587596,0.77115185,40208.0,40207.0,0.00024919]
[1645210587796,0.76119085,40208.0,40207.0,0.00024919]
[1645210587997,0.66381717,40208.0,40207.0,0.00024919]
[1645210588199,0.34735003,40208.0,40207.0,0.00024919]
[1645210588397,0.24735003,40208.0,40207.0,0.00024919]
[1645210588698,0.34735003,40208.0,40207.0,0.25024919]
[1645210589098,0.69868779,40208.0,40207.0,0.25024919]
[1645210590070,0.24735003,40208.0,40207.0,0.25024919]
[1645210590362,0.12286303,40208.0,40207.0,0.26046819]
[1645210591065,0.12286303,40208.0,40207.0,0.25024919]
[1645210592365,0.17286303,40208.0,40207.0,0.25024919]
[1645210594188,0.17286303,40208.0,40207.0,0.25235775]
[1645210595194,0.18282403,40208.0,40207.0,0.25235775]
[1645210595392,0.17286303,40208.0,40207.0,0.25235775]
[1645210596193,0.12286303,40208.0,40207.0,0.33263004]
[1645210596393,0.12286303,40208.0,40207.0,0.26257675]
[1645210596693,0.12286303,40208.0,40207.0,0.25235775]
[1645210597745,0.12286303,40208.0,40207.0,0.25210856]
[1645210599142,0.17286303,40208.0,40207.0,0.25210856]
[1645210599342,0.49406763,40208.0,40207.0,0.25210856]
[1645210601591,0.48148763,40208.0,40207.0,0.25210856]
[1645210602998,0.16028303,40208.0,40207.0,0.25210856]
[1645210604196,0.41169866,40208.0,40207.0,0.25210856]
[1645210604596,0.16028303,40208.0,40207.0,0.25210856]
[1645210605643,0.42894183,40208.0,40207.0,0.25210856]
[1645210605843,0.52894183,40208.0,40207.0,0.25210856]
[1645210611603,0.52894183,40208.0,40200.0,0.0091]
[1645210611604,0.46224967,40206.0,40191.0,0.1969]
[1645210611802,0.12451801,40203.0,40193.0,0.3096]
[1645210612000,0.12451801,40203.0,40193.0,0.0096]
[1645210612001,0.010219,40201.0,40193.0,0.0096]
[1645210612200,0.010219,40197.0,40193.0,0.0096]
[1645210612448,0.40919579,40196.0,40193.0,0.0096]
[1645210612646,0.40919579,40196.0,40189.0,0.424]
[1645210612647,0.40919579,40196.0,40189.0,0.3]
[1645210612946,0.40919579,40196.0,40174.0,0.8651]
[1645210612947,0.010219,40195.0,40183.0,0.4204]
[1645210613146,0.06226722,40194.0,40184.0,0.3]
[1645210613346,0.0498,40194.0,40186.0,0.08027229]
[1645210613550,0.0498,40194.0,40189.0,0.08027229]
[1645210613746,0.0498,40194.0,40182.0,0.009]
[1645210613946,0.062267,40192.0,40187.0,0.2095667]
[1645210614147,0.062267,40192.0,40187.0,0.28983899]
[1645210614347,0.24906539,40192.0,40187.0,0.28983899]
[1645210614547,0.18679839,40192.0,40187.0,0.08027229]
[1645210615451,0.062265,40189.0,40182.0,0.009]
[1645210615851,0.134773,40185.0,40182.0,0.009]
[1645210616055,0.124554,40185.0,40182.0,0.009]
[1645210616499,0.09613383,40183.0,40182.0,0.009]
[1645210616703,0.124554,40185.0,40180.0,0.08027229]
[1645210617100,0.062277,40184.0,40180.0,0.08027229]
[1645210618605,0.062277,40184.0,40179.0,0.08027229]
[1645210620056,0.062277,40184.0,40178.0,0.08967229]
[1645210620655,0.062277,40184.0,40178.0,0.08027229]
[1645210621261,0.062277,40184.0,40174.0,0.072275]
[1645210621459,0.062277,40184.0,40183.0,0.08027229]
[1645210622259,0.062277,40184.0,40175.0,0.1315776]
[1645210622460,0.062277,40184.0,40179.0,0.062267]
[1645210622659,0.062277,40184.0,40183.0,0.08027229]
[1645210622862,0.062277,40184.0,40179.0,0.062267]
[1645210623060,0.062277,40184.0,40181.0,0.09276649]
[1645210624095,0.062277,40184.0,40183.0,0.00465985]
[1645210625095,0.36587788,40184.0,40183.0,0.00465985]
[1645210625297,0.062277,40184.0,40183.0,0.00465985]
[1645210625895,0.062277,40184.0,40181.0,0.08442662]
[1645210626294,0.062277,40184.0,40183.0,0.25]
[1645210628647,0.062277,40184.0,40183.0,0.25505013]
[1645210628847,0.112077,40184.0,40183.0,0.25767592]
[1645210631303,0.062277,40184.0,40183.0,0.33794821]
[1645210631504,0.010219,40189.0,40183.0,0.33794821]
[1645210631710,0.010219,40191.0,40183.0,0.25767592]
[1645210631926,0.010219,40191.0,40184.0,0.08027229]
[1645210632103,0.010219,40191.0,40183.0,0.25767592]
[1645210632306,0.114347,40185.0,40183.0,0.14267592]
[1645210632503,0.30117332,40185.0,40183.0,0.14267592]
[1645210632704,0.35117332,40185.0,40183.0,0.14267592]
[1645210633705,0.062277,40184.0,40183.0,0.14267592]
[1645210634003,0.062277,40184.0,40183.0,0.22294821]
[1645210634207,0.062277,40184.0,40183.0,0.14720578]
[1645210635041,0.062277,40184.0,40183.0,0.22747807]
[1645210635541,0.062277,40184.0,40183.0,0.14720578]
[1645210636644,0.36047344,40184.0,40183.0,0.14720578]
[1645210639505,0.062277,40184.0,40183.0,0.14720578]
[1645210639698,0.062277,40184.0,40183.0,0.14065551]
[1645210641602,0.062264,40187.0,40183.0,0.14065551]
[1645210641802,0.062264,40187.0,40186.0,0.08027229]
[1645210642009,0.010219,40188.0,40186.0,0.08027229]
[1645210642202,0.010219,40189.0,40186.0,0.08027229]
[1645210642445,0.31780813,40190.0,40183.0,0.14065551]
[1645210642446,0.010219,40188.0,40183.0,0.14065551]
[1645210642647,0.00989435,40187.0,40183.0,0.14065551]
[1645210643447,0.12885783,40184.0,40183.0,0.14065551]
[1645210643948,0.17885783,40184.0,40183.0,0.14065551]
[1645210644147,0.17885783,40184.0,40183.0,0.13565551]
[1645210644947,0.18148711,40184.0,40183.0,0.13505013]
[1645210645548,0.05262928,40184.0,40183.0,0.13505013]
[1645210645746,0.00262928,40184.0,40183.0,0.13505013]
[1645210646397,0.00262928,40184.0,40183.0,0.39760853]
[1645210646596,0.00262928,40184.0,40183.0,0.78795214]
[1645210646797,0.00262928,40184.0,40183.0,0.79785214]
[1645210646995,0.00262928,40184.0,40183.0,0.53529374]
[1645210647999,0.00262928,40184.0,40183.0,0.8252955]
[1645210648199,0.00262928,40184.0,40183.0,0.9252955]
[1645210648401,0.00262928,40184.0,40183.0,0.8752955]
[1645210649598,0.00262928,40184.0,40183.0,0.58529374]
[1645210650047,0.00262928,40184.0,40183.0,0.53529374]
[1645210650246,0.01188889,40186.0,40183.0,0.53529374]
[1645210650448,0.01188889,40186.0,40185.0,0.08027229]
[1645210650648,0.00166989,40186.0,40185.0,0.08027229]
[1645210650953,0.00166989,40186.0,40185.0,0.18007229]
[1645210651148,0.00166989,40186.0,40185.0,0.33007229]
[1645210651349,0.00166989,40186.0,40185.0,1.52676729]
[1645210651549,0.010219,40192.0,40191.0,0.331595]
[1645210651748,0.010219,40195.0,40191.0,0.91101393]
[1645210651950,0.010219,40196.0,40191.0,0.91101393]
[1645210651951,0.26050437,40196.0,40194.0,0.08027229]
[1645210652355,0.010219,40198.0,40194.0,0.13027229]
[1645210652551,0.010219,40198.0,40197.0,0.08027229]
[1645210652752,0.010219,40198.0,40197.0,0.14251129]
[1645210654003,0.010219,40199.0,40197.0,0.14251129]
[1645210655004,0.08484691,40200.0,40197.0,0.14251129]
[1645210656207,0.08484691,40200.0,40197.0,0.08027229]
[1645210656208,0.010219,40199.0,40197.0,0.08027229]
[1645210656405,0.010219,40198.0,40191.0,0.0097]
[1645210656605,0.06225487,40197.0,40191.0,0.0097]
[1645210656806,0.010219,40194.0,40191.0,0.0097]